[Event "Dutch Open 2022"]
[Site "Dieren"]
[Date "2022.07.28"]
[Round "3.1"]
[White "Sekar, B."]
[Black "Lahaye, Rick"]
[Result "0-1"]
[ECO "B51"]
[WhiteElo "2241"]
[BlackElo "2417"]
[Annotator "TA"]
[PlyCount "52"]
[EventDate "2022.07.14"]
[EventType "swiss"]
[EventCountry "NED"]
[SourceTitle "playchess.com"]
[Source "ChessBase"]
[SourceQuality "1"]
[TimeControl "40/5400+30:1800+30"]

{[%evp 9,52,11,23,15,21,11,15,8,1,0,0,0,3,-1,15,15,31,26,41,27,35,31,100,82,108,91,114,80,83,0,9,-23,-12,-16,-19,-43,-41,-94,-26,-27,0,-425,-419,-415,-328]} 1. e4 {[%emt 0:00:04]} c5 {[%emt 0:00:08]} 2. Nf3 {[%emt 0:00:05]} d6 {[%emt 0:00:08]} 3. Bb5+ {[%emt 0:01:28]} Nd7 {[%emt 0:00:20]} 4. Ba4 {[%emt 0:00:15]} Ngf6 {[%emt 0:00:43]} 5. O-O {[%emt 0:01:15]} a6 {[%emt 0:00:12]} 6. c4 {[%emt 0:02:41] Inhibits b5. B51: Sicilian: Moscow Variation (3 Bb5+) without 3...Bd7.} e6 {[%emt 0:01:38]} 7. Nc3 {[%emt 0:01:52]} Be7 {[%emt 0:00:13]} 8. d3 {[%emt 0:03:05] The position is equal.} O-O {[%emt 0:01:01]} 9. h3 {[%emt 0:00:29]} b6 {[%emt 0:14:51] [#]} 10. Bf4 $146 {[%emt 0:25:46]} ({Predecessor:} 10. Qe2 Bb7 11. Rb1 Qc7 {½-½ (11) Shubin,K (2475)-Chigaev,M (2631) Obninsk 2022}) 10... Bb7 {[%emt 0:00:07]} 11. Qe2 {[%emt 0:00:40]} Ne8 {[%emt 0:02:45]} 12. a3 {[%emt 0:08:46]} Bf6 {[%emt 0:04:49]} 13. Rab1 {[%emt 0:01:19]} Qe7 {[%emt 0:20:28]} 14. Rfc1 {[%emt 0:02:28]} Nc7 {[%emt 0:02:03]} 15. b4 {[%emt 0:05:45]} b5 {[%emt 0:07:23]} (15... Rab8 $14) 16. cxb5 $16 {[%emt 0:10:29]} axb5 {[%emt 0:03:17]} 17. Nxb5 {[%emt 0:13:38]} Nxb5 {[%emt 0:08:48]} 18. Bxb5 {[%emt 0:00:02]} Rxa3 {[%emt 0:00:06]} 19. bxc5 {[%emt 0:08:03]} (19. Bxd7 $16 {[%cal Ob4c5] aiming for bxc5!} Qxd7 20. bxc5 dxc5 21. Be5 (21. Rxc5 Ba6 $11) 21... Bxe5 22. Nxe5) 19... Nxc5 $11 {[%emt 0:00:45][%cal Bd7c5,Bc5b3,Bb3d4][%mdl 32]} 20. e5 {[%emt 0:03:35]} dxe5 {[%emt 0:02:33]} 21. Nxe5 {[%emt 0:02:03]} Nb3 {[%emt 0:00:25]} 22. Rd1 {[%emt 0:04:40]} Nd4 {[%emt 0:03:03]} 23. Qb2 {[%emt 0:00:48]} (23. Qe3 $15 Rd8 24. Bc4) 23... Bxe5 {[%emt 0:02:11] Black is more active.} ({Don't play} 23... Nxb5 $6 24. Qxb5 Bxe5 25. Qxe5 $11) (23... Qd6 $17 24. Bc4 Bxg2 25. Kxg2 Ra5) 24. Bxe5 {[%emt 0:00:02]} Qg5 {[%emt 0:00:01][%csl Gb7][%cal Rg5g2]} 25. Bg3 $2 {[%emt 0:02:36][%mdl 8192] [#]} (25. f4 $11 {and White has nothing to worry.} Nf3+ 26. Kf1 Nh2+ 27. Kg1) 25... Qd5 $1 $19 {[%emt 0:00:11][%csl Gb7][%cal Rd5g2]} 26. f3 {[%emt 0:00:42]} Rb3 {[%emt 0:00:05] Weighted Error Value: White=0.46/Black=0.15 (very precise)} ({Not} 26... Nxb5 27. Qxb5 Qxb5 28. Rxb5 $11) 0-1

[Event "Dutch Open 2022"]
[Site "Dieren"]
[Date "2022.07.28"]
[Round "3.2"]
[White "Elgersma, Onno"]
[Black "Grutter, Tim"]
[Result "1/2-1/2"]
[ECO "E60"]
[WhiteElo "2316"]
[BlackElo "2246"]
[Annotator "TA"]
[PlyCount "127"]
[EventDate "2022.07.14"]
[EventType "swiss"]
[EventCountry "NED"]
[SourceTitle "playchess.com"]
[Source "ChessBase"]
[SourceQuality "1"]
[TimeControl "40/5400+30:1800+30"]

{[%evp 17,127,43,53,52,86,79,87,68,93,85,93,89,95,80,96,95,96,43,76,67,87,63,85,-2,0,-26,-17,-37,-25,-24,-37,-37,-31,-33,-31,-50,-24,-24,-24,-25,-25,-27,-27,-23,-26,-46,-36,-41,-29,-92,-51,-59,-13,-27,0,-9,-4,-19,0,-20,0,-25,0,0,0,0,0,0,0,0,0,0,0,0,0,0,0,0,0,0,0,0,0,0,0,0,0,0,0,0,0,0,0,0,0,0,0,0,0,0,0,0,0,0,0,0,0,0,0,0,0,0]} 1. Nf3 {[%emt 0:25:12]} Nf6 {[%emt 0:00:04]} 2. d4 {[%emt 0:00:14]} g6 {[%emt 0:00:05]} 3. e3 {[%emt 0:00:33]} Bg7 {[%emt 0:00:17]} 4. b3 {[%emt 0:00:12]} O-O {[%emt 0:00:31]} 5. Bb2 {[%emt 0:00:05]} d6 {[%emt 0:01:10]} 6. Be2 {[%emt 0:00:08]} Bf5 {[%emt 0:06:51]} 7. O-O {[%emt 0:01:05]} c5 {[%emt 0:03:16]} 8. c4 {[%emt 0:03:09]} Nc6 {[%emt 0:09:16]} 9. d5 {[%emt 0:06:30]} Nb4 {[%emt 0:01:22]} 10. a3 {[%emt 0:07:31] [#] E60: King's Indian: Unusual lines and Fianchetto Variation without Nc3.} Bc2 $146 {[%emt 0:09:47]} ({Predecessor:} 10... Na6 11. Bd3 Qd7 12. Re1 Bxd3 13. Qxd3 Nc7 14. e4 b5 15. Nbd2 Rfb8 16. Bc3 a5 17. e5 Nh5 18. exd6 exd6 19. Bxg7 Kxg7 {1-0 (66) Valderrama Quiceno,E (2447)-Rivera,I (2197) Cartagena 2019}) 11. Qd2 {[%emt 0:19:15]} Bxb1 {[%emt 0:03:17]} (11... Ne4 $2 12. Qc1 $18) 12. Raxb1 {[%emt 0:05:28] White is better.} (12. Rfxb1 {seems wilder.} Ne4 13. Qc1 Na6 14. Bxg7 Kxg7 15. Bd3) 12... Na6 {[%emt 0:01:34]} 13. Qc2 {[%emt 0:00:39]} Rb8 {[%emt 0:04:32]} 14. e4 {[%emt 0:00:37]} Nc7 {[%emt 0:01:00]} 15. b4 {[%emt 0:06:32]} Nd7 {[%emt 0:06:38]} 16. Bxg7 {[%emt 0:01:35]} Kxg7 {[%emt 0:00:22]} 17. Rb2 {[%emt 0:00:45] White is more active.} (17. Qc3+ $16 f6 18. Nd2) 17... f6 {[%emt 0:11:28]} 18. Rfb1 {[%emt 0:00:51]} b6 {[%emt 0:05:11]} 19. h3 {[%emt 0:02:47]} e5 {[%emt 0:02:22]} 20. dxe6 {[%emt 0:04:46]} (20. Nd2 $16) 20... Nxe6 $11 {[%emt 0:00:06]} 21. bxc5 {[%emt 0:02:52]} dxc5 {[%emt 0:01:39]} 22. Rd1 {[%emt 0:00:16]} Qc7 {[%emt 0:01:38]} 23. Qa4 {[%emt 0:00:06]} Rbd8 {[%emt 0:01:56]} 24. Rbd2 {[%emt 0:01:08][%cal Rd2d7]} Nb8 {[%emt 0:01:19][%cal Bd7b8,Bb8c6,Bc6d8,Bd8e6][%mdl 32]} 25. Bf1 {[%emt 0:03:38]} Nc6 {[%emt 0:06:25]} 26. Rd5 {[%emt 0:00:04]} Nf4 {[%emt 0:02:23]} 27. R5d2 {[%emt 0:01:03]} Rxd2 {[%emt 0:01:01]} 28. Rxd2 {[%emt 0:00:24]} Rd8 {[%emt 0:00:38]} 29. Rxd8 {[%emt 0:00:48]} Nxd8 {[%emt 0:00:05]} 30. Qe8 {[%emt 0:01:23]} Nfe6 {[%emt 0:00:55]} 31. h4 {[%emt 0:01:31]} Qf7 {[%emt 0:00:34]} (31... Qd6 {feels hotter.} 32. g3 Nd4 33. Kg2 Nf7) 32. Qa4 {[%emt 0:00:29]} Nd4 {[%emt 0:01:15]} 33. Nd2 {[%emt 0:01:24]} (33. Nxd4 $11 cxd4 34. Qb5) 33... N8e6 {[%emt 0:01:23]} 34. Nb1 {[%emt 0:00:32]} Nf8 {[%emt 0:04:32] Pair of Knights!} (34... g5 $15) 35. Nc3 {[%emt 0:00:40]} Qd7 {[%emt 0:00:07]} 36. Qd1 {[%emt 0:01:07]} Nfe6 {[%emt 0:01:40]} 37. Nd5 {[%emt 0:00:17]} Nc7 {[%emt 0:01:26]} (37... Nd8 {looks sharper.} 38. f4 N8c6 39. h5 Ne7) 38. Ne3 {[%emt 0:01:28]} Qc6 {[%emt 0:02:29]} 39. Qd3 {[%emt 0:01:25]} Qa4 {[%emt 0:02:07]} 40. Nf5+ {[%emt 0:00:40] The position is equal.} gxf5 {[%emt 0:03:40]} 41. Qg3+ {[%emt 0:30:51]} Kf8 $1 {[%emt 0:05:34] [#] White must now prevent ...Ne8.} (41... Kh6 42. Qf4+ Kg7 43. Qxc7+ Kf8 44. exf5 $16 (44. Qxh7 Qd1 $11)) 42. Qxc7 {[%emt 0:00:00][%mdl 4096] Endgame KQB-KQN} Qd1 {[%emt 0:01:10]} 43. Qd8+ {[%emt 0:00:00]} Kf7 $1 {[%emt 0:00:28]} ({Don't do} 43... Kg7 44. Qe7+ Kg8 45. exf5 $16) 44. Qd7+ {[%emt 0:00:00]} Kf8 $1 {[%emt 0:00:11] Hoping for ...Ne2+.} 45. Qd6+ {[%emt 0:00:00]} Kf7 {[%emt 0:00:40] [#] aiming for ...Ne2+.} ({Resist} 45... Kg7 46. Qe7+ Kg8 47. Qe8+ (47. exf5 Qb1 $16) 47... Kg7 48. Qe7+ Kg8 49. exf5 $16) 46. Qc7+ {[%emt 0:00:00]} Kf8 {[%emt 0:00:15]} 47. Qb8+ {[%emt 0:00:00]} Kf7 {[%emt 0:05:36]} 48. Qxa7+ {[%emt 0:00:00]} Kg8 {[%emt 0:02:51] ...Ne2+ is the strong threat.} 49. Qb8+ {[%emt 0:00:00]} Kf7 {[%emt 0:01:07]} 50. Qc7+ {[%emt 0:00:00]} Ke8 {[%emt 0:02:54]} 51. Qc8+ {[%emt 0:01:22]} Ke7 {[%emt 0:00:33]} 52. Qb7+ {[%emt 0:00:13]} Ke8 {[%emt 0:01:14]} 53. g3 {[%emt 0:04:01] Strongly threatening exf5.} Nf3+ {[%emt 0:01:59]} 54. Kg2 {[%emt 0:00:04]} Nd2 {[%emt 0:04:59][%csl LRe4,LRf1]} 55. Qc8+ {[%emt 0:00:04]} Ke7 {[%emt 0:00:18]} 56. Qc7+ {[%emt 0:00:05]} Ke8 {[%emt 0:00:28]} 57. Qc6+ {[%emt 0:00:33]} Ke7 {[%emt 0:00:11]} 58. Qb7+ {[%emt 0:01:47]} Ke8 {[%emt 0:00:18]} 59. Qa8+ {[%emt 0:00:12]} Ke7 {[%emt 0:00:17]} 60. Qb7+ {[%emt 0:01:04]} Ke8 {[%emt 0:00:04]} 61. Qc8+ {[%emt 0:00:29]} Ke7 {[%emt 0:00:08]} 62. Qc7+ {[%emt 0:00:19]} Ke8 {[%emt 0:00:05]} 63. Qc8+ {[%emt 0:00:06]} Ke7 {[%emt 0:00:04]} 64. Qc7+ {[%emt 0:00:05] Weighted Error Value: White=0.10 (very precise) /Black=0.06 (flawless)} 1/2-1/2

[Event "Dutch Open 2022"]
[Site "Dieren"]
[Date "2022.07.28"]
[Round "3.3"]
[White "Van Roon, Sjoerd"]
[Black "Domalchuk-Jonasson, Aleksandr"]
[Result "1-0"]
[ECO "C13"]
[WhiteElo "2310"]
[BlackElo "2244"]
[Annotator "TA"]
[PlyCount "99"]
[EventDate "2022.07.14"]
[EventType "swiss"]
[EventCountry "NED"]
[SourceTitle "playchess.com"]
[Source "ChessBase"]
[SourceQuality "1"]
[TimeControl "40/5400+30:1800+30"]

{[%evp 12,99,-33,-47,-42,-41,-17,-25,-26,-27,0,0,0,0,0,-54,-33,-38,-16,-41,-22,-10,-8,-20,0,0,0,0,0,0,0,0,0,0,0,0,52,56,52,47,150,136,347,340,326,339,334,339,327,292,356,370,356,393,393,353,402,383,570,470,440,423,441,422,525,499,518,425,876,951,710,905,1497,1486,1939,1907,1796,1210,1164,1164,1138,1018,29983,29984,29984,29985,29985,29986,29986,29987]} 1. e4 {[%emt 0:00:01]} e6 {[%emt 0:03:30]} 2. d4 {[%emt 0:00:05]} d5 {[%emt 0:00:17]} 3. Nc3 {[%emt 0:00:06]} Nf6 {[%emt 0:00:20]} 4. Bg5 {[%emt 0:00:12]} dxe4 {[%emt 0:01:42]} 5. Bxf6 {[%emt 0:01:07]} gxf6 {[%emt 0:02:52]} 6. Nxe4 {[%emt 0:00:07]} f5 {[%emt 0:01:40]} 7. Ng3 $1 {[%emt 0:01:36] The main line 7.Ng3 scores better than 7.Nc3.} c5 {[%emt 0:01:32] C13: French: Classical System: 4 Bg5 Be7, Alekhine-Chatard Attack.} 8. dxc5 {[%emt 0:09:18]} Qxd1+ {[%emt 0:11:42]} (8... Nc6 {is more complex.} 9. c3 Bxc5 10. Nf3 h5) 9. Rxd1 {[%emt 0:00:06]} Bxc5 {[%emt 0:00:26] Black has an edge.} 10. Nf3 {[%emt 0:00:39]} Nc6 {[%emt 0:06:07]} 11. Bb5 {[%emt 0:07:27]} Bd7 {[%emt 0:01:12]} 12. Nh5 {[%emt 0:00:37] [#] Threatens to win with Nf6+.} Ke7 {[%emt 0:07:51] [#] Prevents Nf6.} 13. c3 $146 {[%emt 0:16:29]} (13. Nf6 $11 Kxf6 14. Rxd7) ({Predecessor:} 13. Nf6 Bc8 14. Nh5 f6 15. O-O Ne5 16. Nd4 a6 17. Be2 Bd7 18. Nf4 Ng6 19. Nh5 {0-1 (28) Quinn,R (2121)-Short,P (2294) Bunratty 2015}) 13... a6 {[%emt 0:03:54]} 14. Bd3 {[%emt 0:04:07]} f6 {[%emt 0:15:27]} 15. Bc2 {[%emt 0:07:52][%cal Oh5f6]} Ne5 {[%emt 0:04:17]} 16. Nd4 {[%emt 0:00:37]} Rhg8 {[%emt 0:02:09]} 17. Nf4 {[%emt 0:07:10]} Nc6 {[%emt 0:07:27]} 18. Ndxe6 {[%emt 0:06:01]} Bxe6 {[%emt 0:01:48]} 19. Nxe6 {[%emt 0:00:06]} Kxe6 {[%emt 0:01:24]} 20. Bb3+ {[%emt 0:00:04]} Ke7 {[%emt 0:00:13]} 21. Bxg8 {[%emt 0:00:07]} Rxg8 {[%emt 0:00:15]} 22. g3 {[%emt 0:01:31][%cal Bg2g3,Bg3f4,Bf4f5][%mdl 32]} f4 {[%emt 0:07:33]} 23. Ke2 {[%emt 0:00:32]} Ne5 {[%emt 0:07:23]} ({Better is} 23... Bd6 $11) 24. gxf4 $14 {[%emt 0:00:12]} Ng6 {[%emt 0:01:19]} 25. f5 {[%emt 0:02:03]} Nf4+ {[%emt 0:03:55]} (25... Ne5 $14) 26. Kf3 $16 {[%emt 0:00:35]} Nh3 $2 {[%emt 0:00:37] Black cannot hold the game after this.} (26... Bd6 $16) 27. Rhe1+ $18 {[%emt 0:01:09]} Kf8 {[%emt 0:02:40]} 28. Rd8+ {[%emt 0:00:53]} Kg7 {[%emt 0:00:28]} 29. Rxg8+ {[%emt 0:00:27]} Kxg8 {[%emt 0:00:01]} 30. Re8+ {[%emt 0:00:09]} Kg7 {[%emt 0:00:54]} 31. Rb8 {[%emt 0:01:28]} b5 {[%emt 0:02:18]} 32. Ra8 {[%emt 0:02:14]} Ng5+ {[%emt 0:01:20]} 33. Ke2 {[%emt 0:01:40]} Nf7 {[%emt 0:01:40]} 34. Rxa6 {[%emt 0:00:18]} h5 {[%emt 0:00:31]} (34... Be7 $142 35. b3 Bc5) 35. b4 {[%emt 0:01:33]} Bf8 {[%emt 0:00:39]} 36. Ra7 {[%emt 0:06:04]} Kg8 {[%emt 0:00:06]} 37. Kd3 {[%emt 0:00:07]} Nd6 {[%emt 0:00:22]} 38. Kd4 {[%emt 0:00:17]} h4 {[%emt 0:00:13]} 39. h3 {[%emt 0:00:38]} Bh6 {[%emt 0:00:05]} (39... Nxf5+ $142 40. Kd5 Ne7+ 41. Ke6 Ng6) 40. a4 {[%emt 0:00:56]} bxa4 {[%emt 0:00:54]} 41. c4 {[%emt 0:30:35][%cal Bc3c4,Bc4c5][%mdl 32] [#] b5 is the strong threat.} Bd2 {[%emt 0:01:53]} 42. b5 {[%emt 0:00:00][%cal Bb4b5,Bb5b6][%mdl 32]} Be1 {[%emt 0:00:38]} 43. Kd5 {[%emt 0:00:00]} Nxf5 {[%emt 0:00:16]} 44. b6 {[%emt 0:00:00] b7 would kill now.} Bxf2 {[%emt 0:00:08]} 45. c5 {[%emt 0:00:00]} Kf8 {[%emt 0:00:56]} 46. b7 {[%emt 0:00:00][%cal Rb7b8]} Ne7+ {[%emt 0:00:16]} 47. Ke6 {[%emt 0:00:00] White mates.} Nc6 {[%emt 0:00:25]} 48. Ra8+ {[%emt 0:00:00]} Kg7 {[%emt 0:00:07]} 49. Rc8 {[%emt 0:00:00]} Nd4+ {[%emt 0:01:49]} 50. Kd5 {[%emt 0:00:00] Weighted Error Value: White=0.10 (very precise) /Black=0.56} 1-0

[Event "Dutch Open 2022"]
[Site "Dieren"]
[Date "2022.07.28"]
[Round "3.4"]
[White "Gilmanov, Mansur"]
[Black "Van Baar, Esper"]
[Result "0-1"]
[ECO "E04"]
[WhiteElo "2377"]
[BlackElo "2281"]
[Annotator "TA"]
[PlyCount "114"]
[EventDate "2022.07.14"]
[EventType "swiss"]
[EventCountry "NED"]
[SourceTitle "playchess.com"]
[Source "ChessBase"]
[SourceQuality "1"]
[TimeControl "40/5400+30:1800+30"]

{[%evp 11,114,4,0,0,0,0,0,0,19,25,25,9,12,0,0,0,0,0,0,0,0,0,20,19,16,-79,-66,-58,-60,-87,-98,-97,-97,-97,-70,-70,-70,-70,0,-70,-70,-72,-75,-124,-110,-110,-110,-187,-120,-211,-211,-170,-166,-211,-205,-252,-252,-230,-173,-186,-179,-399,-294,-303,-286,-422,-293,-283,-290,-376,-233,-207,0,-356,-357,-561,-504,-595,-583,-559,-559,-531,-490,-637,-590,-1000,-953,-2012,-1910,-1824,-1706,-1345,-1190,-1573,-1431,-2712,-1008,-6623,-5110,-29973,-29974,-29969,-29969,-5245,-5096]} 1. d4 {[%emt 0:04:21]} Nf6 {[%emt 0:00:46]} 2. c4 {[%emt 0:00:06]} e6 {[%emt 0:00:04]} 3. g3 {[%emt 0:00:06]} d5 {[%emt 0:00:59][%cal Bd7d5,Bd5c4][%mdl 32]} 4. Nf3 {[%emt 0:00:07]} dxc4 {[%emt 0:00:29]} 5. Bg2 {[%emt 0:00:11]} c6 {[%emt 0:00:29]} 6. O-O {[%emt 0:06:33]} b5 {[%emt 0:01:18]} 7. Ne5 {[%emt 0:04:54] E04: Open Catalan: 5 Nf3.} Bb7 {[%emt 0:01:32]} 8. b3 {[%emt 0:08:22]} cxb3 $1 {[%emt 0:00:44]} 9. axb3 {[%emt 0:00:36] The position is equal.} Bd6 {[%emt 0:19:20]} 10. Nc3 {[%emt 0:06:00] Black should prevent Nxb5.} a6 {[%emt 0:07:30]} 11. Qc2 {[%emt 0:29:09]} Qc7 {[%emt 0:07:44] [#]} 12. Ne4 $146 {[%emt 0:17:55] Inhibits c5.} ({Predecessor:} 12. Nd3 Nbd7 13. Ne4 Nxe4 14. Bxe4 Rc8 15. b4 O-O 16. Bb2 h6 17. Rfc1 Nb6 18. Nc5 {1-0 (50) Korchmar,V (2415)-Etxagibel Larranaga,A (2134) Riga 2018}) 12... Nxe4 {[%emt 0:07:39]} 13. Qxe4 {[%emt 0:00:29]} O-O {[%emt 0:02:32]} 14. Ba3 {[%emt 0:05:45]} Bxa3 {[%emt 0:13:29]} 15. Rxa3 {[%emt 0:01:07]} Ra7 {[%emt 0:00:07]} 16. Qe3 {[%emt 0:00:40][%cal Od4d5]} Qd6 {[%emt 0:15:27] Against d5} 17. Ra2 {[%emt 0:04:13]} Rd8 {[%emt 0:02:25]} 18. Rc1 {[%emt 0:02:23]} (18. Raa1 $11) 18... Qxd4 $17 {[%emt 0:02:33]} 19. Qxd4 {[%emt 0:01:33]} Rxd4 {[%emt 0:00:06]} 20. Bxc6 {[%emt 0:00:53]} Nxc6 {[%emt 0:02:50]} 21. Nxc6 {[%emt 0:00:11]} Bxc6 {[%emt 0:00:06]} 22. Rxc6 {[%emt 0:00:03] [#] White wants to mate with Rc8+.} g6 {[%emt 0:01:17][%cal Bg7g6,Bg6g5][%mdl 32]} 23. Raxa6 {[%emt 0:05:05]} Rxa6 {[%emt 0:00:01]} 24. Rxa6 $15 {[%emt 0:00:02][%mdl 4096] Endgame KR-KR} Rd1+ $1 {[%emt 0:00:09]} 25. Kg2 {[%emt 0:00:10]} Rb1 {[%emt 0:00:04]} 26. Rb6 {[%emt 0:00:26]} Rxb3 {[%emt 0:00:10]} 27. e3 {[%emt 0:00:18]} (27. h4 $142) 27... g5 {[%emt 0:02:55]} 28. g4 {[%emt 0:01:12]} Kg7 {[%emt 0:00:27]} 29. Kf3 {[%emt 0:00:09]} (29. Kg3 $17) 29... Kf6 {[%emt 0:02:14]} (29... Rb2 $19 30. Kg3 b4) 30. Rb7 {[%emt 0:00:02]} (30. Kg3 $17 {was necessary.}) 30... Rb2 $19 {[%emt 0:00:49]} 31. Kg3 {[%emt 0:00:19]} b4 {[%emt 0:02:18][%cal Bb5b4,Bb4b3][%mdl 32]} 32. Kf3 {[%emt 0:01:13]} b3 {[%emt 0:00:33]} 33. h3 {[%emt 0:01:09]} h6 {[%emt 0:03:39]} 34. Kg3 {[%emt 0:00:53]} Rb1 {[%emt 0:00:12]} 35. Kf3 {[%emt 0:00:11]} Ke5 {[%emt 0:02:38] And now ...Kd5 would win.} 36. Ke2 $2 {[%emt 0:00:32]} (36. Rxf7 Rb2 37. Rb7) 36... f6 {[%emt 0:01:24]} 37. Rb5+ {[%emt 0:01:04]} Kd6 {[%emt 0:00:06]} 38. Rb8 {[%emt 0:00:12]} (38. Kd3 {was forced.}) 38... Kc5 {[%emt 0:01:15]} 39. Kd3 {[%emt 0:00:17]} Rb2 {[%emt 0:01:06]} 40. Rc8+ {[%emt 0:01:02]} Kb4 {[%emt 0:00:30]} 41. Rb8+ {[%emt 0:30:09] [#]} Kc5 {[%emt 0:00:40]} (41... Ka4 $142 $1 42. f4 gxf4 43. exf4 Rf2) 42. Rc8+ $1 {[%emt 0:00:00]} Kd6 {[%emt 0:01:27]} 43. Rb8 {[%emt 0:00:00]} (43. f3 {might work better.} Rf2 44. Ke4) 43... Rxf2 {[%emt 0:02:51]} 44. Rxb3 {[%emt 0:00:00]} Rh2 {[%emt 0:01:03]} 45. Rb6+ {[%emt 0:00:00]} Ke7 {[%emt 0:01:07]} 46. Rb7+ {[%emt 0:00:00]} Kf8 {[%emt 0:01:28]} 47. Rh7 {[%emt 0:00:00]} Rxh3 {[%emt 0:00:18] aiming for ...Rh4.} 48. Ke4 {[%emt 0:00:00]} Rg3 {[%emt 0:03:10]} 49. Rxh6 {[%emt 0:00:00]} Kg7 {[%emt 0:00:21]} 50. Rh1 {[%emt 0:00:00]} Rxg4+ {[%emt 0:00:05]} 51. Kf3 {[%emt 0:00:00]} Ra4 {[%emt 0:00:19]} 52. Rb1 {[%emt 0:00:00]} f5 {[%emt 0:00:46] ...g4+ is the strong threat.} 53. Rb5 {[%emt 0:00:00]} Kf6 {[%emt 0:00:18]} (53... g4+ $142 54. Kf2 Ra2+ 55. Kf1 g3) 54. Rc5 {[%emt 0:00:00]} g4+ {[%emt 0:02:50]} 55. Kg3 {[%emt 0:00:00]} Ra3 {[%emt 0:00:41]} 56. Kf2 {[%emt 0:00:00]} Ra2+ {[%emt 0:00:07]} 57. Kg3 {[%emt 0:00:00]} Re2 {[%emt 0:00:50] Weighted Error Value: White=0.91/Black=0.27 (precise)} 0-1

[Event "Dutch Open 2022"]
[Site "Dieren"]
[Date "2022.07.28"]
[Round "3.5"]
[White "Baselmans, Sam"]
[Black "Binnendijk, Ferdinand"]
[Result "1/2-1/2"]
[ECO "C55"]
[WhiteElo "2182"]
[BlackElo "2147"]
[Annotator "TA"]
[PlyCount "81"]
[EventDate "2022.07.14"]
[EventType "swiss"]
[EventCountry "NED"]
[SourceTitle "playchess.com"]
[Source "ChessBase"]
[SourceQuality "1"]
[TimeControl "40/5400+30:1800+30"]

{[%evp 12,81,33,34,31,35,45,25,29,23,28,26,45,39,48,21,63,14,27,18,50,57,86,71,75,94,106,30,22,41,45,64,58,-118,64,61,61,57,41,7,105,66,73,73,73,73,73,73,254,-241,93,0,166,121,109,73,170,177,302,250,255,239,284,291,278,256,324,239,294,0,0,0]} 1. e4 {[%emt 0:00:03]} e5 {[%emt 0:00:03]} 2. Nf3 {[%emt 0:00:06]} Nc6 {[%emt 0:00:05]} 3. Bc4 {[%emt 0:00:04]} Nf6 {[%emt 0:00:04]} 4. d3 {[%emt 0:00:05]} Be7 {[%emt 0:00:11]} 5. O-O {[%emt 0:00:07]} O-O {[%emt 0:00:31]} 6. Re1 {[%emt 0:00:10]} d6 {[%emt 0:00:54]} 7. a3 {[%emt 0:02:16]} Na5 {[%emt 0:01:36] C55: Two Knights: 4 d3, 4 d4 exd4 5 e5 and Max Lange Attack.} 8. Ba2 {[%emt 0:00:24]} c5 {[%emt 0:01:52]} 9. Nbd2 {[%emt 0:05:02] [#]} b5 $146 {[%emt 0:06:24] White has an edge.} ({Predecessor:} 9... h6 10. Nf1 Re8 11. Ng3 Bf8 12. c3 Nc6 13. h3 Be6 14. d4 Bxa2 15. Rxa2 cxd4 16. cxd4 exd4 17. Nxd4 {½-½ (49) Casante,T (1556)-Ramillo,V (1842) Sao Paulo 2018}) 10. c3 {[%emt 0:01:53]} Nc6 {[%emt 0:03:54]} 11. Nf1 {[%emt 0:02:19]} h6 {[%emt 0:04:10]} 12. Ne3 {[%emt 0:05:54]} (12. Nh4 {feels hotter.} Re8 13. Ng6 Rb8 14. Qf3) 12... Rb8 {[%emt 0:07:45]} 13. Nd5 {[%emt 0:05:31]} Nxd5 {[%emt 0:05:05]} 14. Bxd5 {[%emt 0:05:01]} (14. exd5 $14 {deserves consideration.} Na5 15. b4) 14... Qc7 $11 {[%emt 0:00:42]} 15. Be3 {[%emt 0:05:32]} Be6 {[%emt 0:09:13]} 16. b4 {[%emt 0:07:22]} Bxd5 {[%emt 0:05:44]} 17. exd5 {[%emt 0:00:21]} Nd8 {[%emt 0:01:22]} 18. bxc5 {[%emt 0:01:58] White is more active.} dxc5 {[%emt 0:00:17]} 19. Nxe5 {[%emt 0:05:59]} Qxe5 {[%emt 0:03:12] [#]} 20. Bxc5 {[%emt 0:00:25]} Qxe1+ {[%emt 0:00:18]} (20... Qxd5 21. Bxe7) 21. Qxe1 {[%emt 0:00:05]} Bxc5 {[%emt 0:00:03]} 22. d4 $2 {[%emt 0:01:32]} (22. a4 $14) 22... Bd6 $2 {[%emt 0:03:50]} (22... Bb6 $1 $17 23. a4 Nb7) 23. a4 $14 {[%emt 0:02:48][%mdl 1024] White has compensation.} b4 {[%emt 0:09:37]} 24. c4 {[%emt 0:03:52]} Nb7 {[%emt 0:00:05]} (24... b3 25. Qc3 $18 (25. c5 Nb7 $16)) 25. g3 {[%emt 0:05:17]} Rfe8 {[%emt 0:03:08]} (25... Rfc8 $11 {remains equal.} 26. Qf1 (26. c5 Nxc5 27. dxc5 Rxc5 $14) 26... Be7) 26. Qd2 {[%emt 0:02:53]} Na5 {[%emt 0:03:24] And now ...Nb3 would win.} 27. Qd3 {[%emt 0:03:07] Against Nb3} ({Avoid the trap} 27. c5 $2 Nb3 28. Qd1 Nxa1 29. Qxa1 b3 $1 $19) 27... Nxc4 {[%emt 0:14:04]} 28. Qxc4 {[%emt 0:00:29]} b3 {[%emt 0:00:11] aiming for ...Rec8.} 29. Rb1 {[%emt 0:01:58]} b2 {[%emt 0:02:08]} (29... Rec8 $16 {was worth a try.} 30. Qa6 Ba3) 30. Qc6 $4 {[%emt 0:08:33][%mdl 8192] [#]} (30. Qa6 $18 {and life is good for White.} Bf8 31. d6 (31. Qxa7 Rec8 $16)) 30... Red8 {[%emt 0:03:55]} (30... Rbc8 $1 $19 {[%cal Rc8c6]} 31. Qb5 Rc1+ 32. Kg2 Rb8) 31. Kg2 {[%emt 0:01:46]} ({Better is} 31. Qa6 $16) 31... Rb6 $2 {[%emt 0:00:13]} (31... Rbc8 $1 $11 32. Qb7 Ba3) 32. Qc3 {[%emt 0:01:20]} Rdb8 {[%emt 0:01:55]} 33. h4 {[%emt 0:04:51]} Rb3 {[%emt 0:02:47]} (33... a5 $16 {keeps fighting.}) 34. Qc6 $18 {[%emt 0:00:36]} Be7 {[%emt 0:02:49]} (34... R3b6 $142 35. Qd7 a5) 35. a5 {[%emt 0:01:15]} Bf6 {[%emt 0:00:08]} 36. Qc5 {[%emt 0:04:11]} a6 {[%emt 0:00:59]} 37. d6 {[%emt 0:00:54]} R3b5 {[%emt 0:01:21]} 38. Qa7 {[%emt 0:01:21]} Bd8 {[%emt 0:01:09]} 39. Qxa6 {[%emt 0:01:58] Threatens to win with d7.} Bxa5 {[%emt 0:01:37]} 40. Rxb2 $2 {[%emt 0:06:50]} Rxb2 $11 {[%emt 0:00:05]} 41. Qxa5 {[%emt 0:30:11] Weighted Error Value: White=0.52/Black=0.58} 1/2-1/2